Cogmind - Beta 16.1 @@@ ROGUE MODE // 2026.03.28 @ 20:34:59 Player: Thqwib-Linux Result: Destroyed by D-53 Grenadier with Mini Grenade Launcher Performance ------------- Evolutions (0) 0 Regions Visited (2) 400 Robots Destroyed (29) 145 Value Destroyed (551) 551 Prototype IDs (5) 100 Alien Tech Used (0) 0 Bonus (0) 0 TOTAL SCORE: 1196 Bonus ------- None Cogmind --------- Core Integrity 0/250 Matter 123/300 Energy 83/125 System Corruption 1% Temperature Cool (0) Movement Flying (37) Location -10/Mines Parts ------- > --- POWER (1) -------- Light Ion Engine > --- PROPULSION (2) --- Flight Unit Flight Unit > --- UTILITY (2) ------ (None) > --- WEAPON (2) ------- (None) > --- INVENTORY (5) ---- Light Nuclear Core Light Treads Light Armor Plating Beam Cannon Makeshift Sword Peak State ------------ > --- POWER ------------ Ion Engine > --- PROPULSION ------- Light Treads Light Treads > --- UTILITY ---------- Small Storage Unit Structural Scanner > --- WEAPON ----------- Beam Cannon Assault Rifle > --- INVENTORY -------- Light Ion Engine Light Nuclear Core Flight Unit Light Armor Plating Assault Rifle Assault Rifle Assault Rifle Grenade Launcher [Rating: 8] Favorites ----------- Power Ion Engine Engine Ion Engine Propulsion Light Treads Treads Light Treads Leg Aluminum Leg Flight Unit Flight Unit Utility Small Storage Unit Device Structural Scanner Storage Small Storage Unit Weapon Assault Rifle Energy Gun Small Laser Energy Cannon Beam Cannon Ballistic Gun Assault Rifle Launcher Grenade Launcher Build | -11 -10 -10 ------- Run | Yrd Mat Min Slots Evolved . | . . . Power . | . . . Propulsion . | . . . Utility . | . . . Weapon . | . . . Parts Attached 15 | 2 10 3 Power 1 | . . 1 Engine 1 | . . 1 Core . | . . . Reactor . | . . . Propulsion 6 | 2 2 2 Treads 4 | 2 2 . Leg . | . . . Wheel . | . . . Hover . | . . . Flight 2 | . . 2 Utility 1 | . 1 . Device 1 | . 1 . Storage . | . . . Processor . | . . . Hackware . | . . . Protection . | . . . Artifact . | . . . Weapon 7 | . 7 . Energy Gun . | . . . Energy Cannon 1 | . 1 . Ballistic Gun 5 | . 5 . Ballistic Cannon . | . . . Launcher 1 | . 1 . Special Weapon . | . . . Impact Weapon . | . . . Slashing Weapon . | . . . Piercing Weapon . | . . . Special Melee Weapon . | . . . Unidentified Prototypes . | . . . Parts Lost 6 | . . 6 Power 1 | . . 1 Propulsion 1 | . . 1 Utility 1 | . . 1 Weapon 3 | . . 3 Highest Loss Streak 3 | . . 3 To Critical Strikes . | . . . Average Backups 6 | 3 6 7 Power 1 | 1 1 1 Propulsion 1 | 1 1 2 Utility . | . . 1 Weapon 2 | 1 2 3 Tool/Special . | . . . Unused Backups 8 | . 5 3 Power 1 | . . 1 Propulsion 3 | . 3 . Utility 1 | . . 1 Weapon 3 | . 2 1 Tool/Special . | . . . Average Slot Usage (%) 95 | . 99 82 Engine 14 | . 14 14 Treads 27 | . 28 27 Device 11 | . 13 2 Storage 14 | . 14 14 Energy Cannon 7 | . 9 . Ballistic Gun 17 | . 17 15 Launcher 2 | . . 7 Peak Build Rating 8 | 6 8 8 Average Rating 7 | 5 7 6 On Entrance 6 | 6 6 8 Avg Prop Armor Cover (%) 11 | . . 11 Naked Turns . | . . . Heaviest Build 16 | 12 16 16 Greatest Support 40 | 40 40 40 Greatest Overweight (x) . | . . . Average Overweight (x) . | . . . Largest Inventory Capacity 8 | 8 8 8 Average Capacity 8 | 8 8 8 Most Carried 8 | 7 8 8 Average Carried 6 | 2 6 7 Final Capacity 8 | 8 8 5 Final Carried 8 | 2 8 5 Class Distribution -------------------- 100% | Mutant Dominant Class ---------------- Mutant | -10/Materials Mutant | -10/Mines Resources | -11 -10 -10 ----------- Run | Yrd Mat Min Matter Collected 685 | 220 341 124 Remotely . | . . . Salvage Created 821 | 20 664 137 Parts 56 | 3 51 2 Haulers Intercepted 2 | . 2 . Recyclers Shooed 1 | 1 . . Parts Field Recycled . | . . . Retrieved Matter . | . . . Parts Self-Destructed . | . . . Prevented . | . . . Parts Restored . | . . . Kills | -11 -10 -10 ------- Run | Yrd Mat Min Combat Hostiles Destroyed 32 | . 17 15 Guns 11 | . 7 4 Cannons 10 | . 10 . AOE 11 | . . 11 Classes Destroyed 10 | 1 8 1 Worker 2 | . 2 . Builder 1 | . 1 . Tunneler 2 | 1 . 1 Hauler 2 | . 2 . Operator 1 | . 1 . Watcher 2 | . 2 . Swarmer 9 | . 9 . Grunt 8 | . 6 2 Subdweller 2 | . 2 . Assembled 13 | . . 13 Best Kill Streak 13 | 1 3 13 Combat Bots Only 13 | . 3 13 Max Kills in Single Turn 4 | 1 1 4 Gunslinging . | . . . Exploded 4 | . . 4 Melee . | . . . Uniques/NPCs Destroyed . | . . . Combat | -11 -10 -10 -------- Run | Yrd Mat Min Hostile Shots Fired 107 | . 64 43 Missed 32 | . 21 11 Hits 75 | . 43 32 Melee 6 | . . 6 Projectile 69 | . 43 26 AOE 6 | . . 6 Part Disruptions 1 | . . 1 Damage Taken 1238 | . 498 740 Core 256 | . 50 206 Absorbed by Shields . | . . . Core Remaining (%) 100 | 100 . . Volleys Fired 92 | 2 62 28 Largest 2 | 2 2 2 Hottest 80 | 60 80 40 Shots Fired 170 | 4 122 44 Gun 115 | 4 79 32 Cannon 41 | . 41 . Launcher 14 | . 2 12 Special . | . . . Kinetic 113 | 2 79 32 Thermal 43 | 2 41 . Explosive 14 | . 2 12 Electromagnetic . | . . . Robot Hit Streak 11 | 2 11 8 Robot Miss Streak 4 | 1 3 4 Penetration Max . | . . . Secondary Targets 2 | . 1 1 Max Gunslinging Chain 1 | . 1 1 Shots Hit Robots 99 | 2 75 22 Core Hits 75 | 1 33 41 Critical Kills . | . . . Critical Parts Destroyed . | . . . Critical Strikes . | . . . Melee Attacks . | . . . Impact . | . . . Slashing . | . . . Piercing . | . . . Sneak Attacks . | . . . Combat Hostiles . | . . . Follow-up Attacks . | . . . Damage Inflicted 2235 | 17 1082 1136 Guns 824 | 17 581 226 Cannons 483 | . 483 . Explosions 907 | . . 907 Melee . | . . . Ramming 21 | . 18 3 Kinetic 814 | 7 581 226 Thermal 493 | 10 483 . Explosive 907 | . . 907 Electromagnetic . | . . . Impact . | . . . Slashing . | . . . Piercing . | . . . Highest Corruption 1 | . . 1 Average Corruption 1 | . . 1 Corruption Purged . | . . . Corruption Blocked . | . . . Overload Shots . | . . . Overflow Damage 19 | . . 19 Projectiles . | . . . Explosions 19 | . . 19 Melee . | . . . Knockbacks . | . . . Impact . | . . . Kinetic . | . . . Secondary . | . . . Self-Inflicted Damage 83 | . . 83 Shots 4 | . . 4 Rammed 5 | . 4 1 Targets Rammed 6 | . 5 1 Kicked . | . . . Crushed 1 | . 1 . Highest Temperature 210 | 40 210 15 Average Temperature 45 | 20 49 8 Received Heat Transfer 354 | . 180 174 Siege Activations . | . . . Martial Activations . | . . . Shielding Activations . | . . . Robots Disrupted . | . . . Combat Hostiles . | . . . Robots Corrupted . | . . . Combat Hostiles . | . . . Parts Fried . | . . . Impact Corruptions . | . . . Robots Melted . | . . . Combat Hostiles . | . . . Parts Melted 1 | . 1 . Heat Transferred 1024 | 25 999 . Parts Sabotaged . | . . . Parts Stolen . | . . . Parts Stripped . | . . . Power Chain Reactions . | . . . Alert | -11 -10 -10 ------- Run | Yrd Mat Min Maximum Alert Level . | . . . Low Security (%) 100 | 100 100 100 Level 1 . | . . . Level 2 . | . . . Level 3 . | . . . Level 4 . | . . . Level 5 . | . . . High Security . | . . . Max Security . | . . . Peak Influence 138 | 5 138 50 Initial 50 | . . 50 Average 39 | 2 47 12 Influence Increases 570 | 5 478 87 Destroy 0b10 Robot/C 340 | . 300 40 Destroy 0b10 Robot/NC 50 | 5 40 5 Destroy Leader 68 | . 58 10 Successful Hack 29 | . 29 . Disable Machine 15 | . 15 . Destroy Structure 53 | . 21 32 Lose Combat Pursuer 15 | . 15 . Influence Decreases 570 | 5 348 217 Entered New Map 80 | . . 80 Time Decay 419 | 5 348 66 Lost Part 51 | . . 51 Lost Ally 20 | . . 20 Squads Dispatched 2 | . 2 . Investigation 2 | . 2 . Extermination . | . . . Reinforcement . | . . . Assault . | . . . Garrison . | . . . Intercept . | . . . Searches Triggered . | . . . Construction Impeded . | . . . Haulers Reinforced . | . . . Active Scanning Responses . | . . . Cargo Convoy Interrupts . | . . . Stealth | -11 -10 -10 --------- Run | Yrd Mat Min Distress Signals 2 | . 2 . Communications Jammed . | . . . Distress Signals . | . . . Times Spotted 46 | . 26 20 Peak Tracking Total 8 | . 3 8 Tactical Retreats 3 | . 1 2 Traps | -11 -10 -10 ------- Run | Yrd Mat Min Traps Triggered . | . . . Indirectly . | . . . Trap Hack Attempts . | . . . Triggered . | . . . Disarmed . | . . . Reprogrammed . | . . . Reused . | . . . Traps Extracted . | . . . Installed . | . . . Triggered . | . . . Machines | -11 -10 -10 ---------- Run | Yrd Mat Min Machines Disabled 1 | . 1 . Max in Single Turn 1 | . 1 . Machines Repaired . | . . . Machines Dismantled . | . . . Machines Sabotaged . | . . . Overloaded Fab Kills . | . . . Hacking | -11 -10 -10 --------- Run | Yrd Mat Min Machines Accessed 8 | . 8 . Terminals 8 | . 8 . Fabricators . | . . . Repair Stations . | . . . Recycling Units . | . . . Scanalyzers . | . . . Garrison Access . | . . . Total Hacks 40 | . 40 . Successful 23 | . 23 . Failed 17 | . 17 . Catastrophic 1 | . 1 . Database Lockouts . | . . . Manual 27 | . 27 . Terminals 40 | . 40 . Fabricators . | . . . Repair Stations . | . . . Recycling Units . | . . . Scanalyzers . | . . . Garrison Access . | . . . Terminal Hacks 13 | . 13 . Part Schematic 1 | . 1 . Robot Analysis 4 | . 4 . Prototype ID Bank 3 | . 3 . Terminal Index 1 | . 1 . Locate Traps 1 | . 1 . Assault Status 1 | . 1 . Hauler Manifests 1 | . 1 . Zone Layout 1 | . 1 . Fabricator Hacks . | . . . Repair Station Hacks . | . . . Recycling Unit Hacks . | . . . Scanalyzer . | . . . Garrison Access Hacks . | . . . Unauthorized Hacks 10 | . 10 . Terminals 10 | . 10 . Assimilate 2 | . 2 . Botnet 8 | . 8 . Fabricators . | . . . Repair Stations . | . . . Recycling Units . | . . . Scanalyzers . | . . . Garrison Access . | . . . Data Cores Recovered 1 | . 1 . Used 1 | . 1 . Hacking Detections 8 | . 8 . Full Trace Events . | . . . Feedback Events . | . . . Feedback Blocked . | . . . Robot Schematics Acquired . | . . . Robots Built . | . . . Authchips . | . . . Time . | . . . Total Robot Build Rating . | . . . Part Schematics Acquired 1 | . 1 . Parts Built . | . . . Authchips . | . . . Time . | . . . Total Part Build Rating . | . . . Part Studies Acquired . | . . . Parts Repaired . | . . . Time . | . . . Parts Recycled . | . . . Recycled Matter . | . . . Retrieved Matter . | . . . Retrieved Components . | . . . Parts Scanalyzed . | . . . Part Schematics Acquired . | . . . Parts Damaged . | . . . Bothacking | -11 -10 -10 ------------ Run | Yrd Mat Min Used RIF Installer . | . . . Robots Hacked . | . . . Non-combat . | . . . Combat . | . . . Robot Hacks Applied . | . . . Relay Couplers Released . | . . . Fabnet Peak Effective % . | . . . Robots Rewired . | . . . Allies Hacked . | . . . Hacks Repelled . | . . . Allies | -11 -10 -10 -------- Run | Yrd Mat Min Total Allies 2 | . 1 1 Largest Group 2 | . 1 2 Highest-Rated Group 41 | . 10 41 Highest-Rated Ally 31 | . 10 31 Total Orders 2 | . 2 . STAY 1 | . 1 . FOLLOW 1 | . 1 . Ally Attacks 7 | . . 7 Total Damage 62 | . . 62 Kills 1 | . . 1 Allies Corrupted . | . . . Allies Melted . | . . . Intel | -11 -10 -10 ------- Run | Yrd Mat Min Active Infowar (turns) 1423 | . 1366 57 Structural 1423 | . 1366 57 Robot Analysis Total 4 | . 4 . Derelict Logs Recovered . | . . . Drone Launches . | . . . Drone Recoveries . | . . . Exploration | -11 -10 -10 ------------- Run | Yrd Mat Min Turns Passed 1820 | 21 1412 387 Spaces Moved 921 | 7 732 182 Core . | . . . Treads 921 | 7 732 182 Legs . | . . . Wheels . | . . . Hover . | . . . Flight . | . . . Fastest Speed 160 | 160 160 160 Average Speed 160 | 160 160 160 Slowest Speed 160 | 160 160 160 Overloaded Moves . | . . . Propulsion Burnouts . | . . . Robots Hopped . | . . . Potential Cave-ins . | . . . Cave-ins Triggered . | . . . Exploration Rate (%) 47 | 2 96 44 Regions Visited 2 Branch Regions 1 Pre-discovered Areas . | . . . Known Exits Taken . | . . . Unknown Exits Taken 2 | 1 1 . Scrap Searched 1 | . . 1 Spaces Dug . | . . . Terrain Destroyed 77 | . 20 57 Melee . | . . . Projectile . | . . . AOE 77 | . 20 57 Terrain Rammed . | . . . Walls Destroyed . | . . . Machines Disabled . | . . . Actions | -11 -10 -10 --------- Run | Yrd Mat Min Total 1099 | 16 853 230 Wait 28 | . 23 5 Move 919 | 6 731 182 Hop . | . . . Pick Up 11 | . 10 1 Fast Attach 3 | . 3 . Attach 5 | 2 . 3 Detach 4 | 2 2 . Swap 15 | . 7 8 Drop 16 | 4 10 2 Fire 92 | 2 62 28 Melee . | . . . Ram . | . . . Kick . | . . . Crush 6 | . 5 1 Escape Stasis . | . . . Rewire . | . . . Trap . | . . . Miscellaneous . | . . . Route ------- -11/Scrapyard -10/Materials (discovered 5 exits: [*Mat x3] / [*Min] / [Sub]) -10/Mines History --------- Turn | Location | Event 12 | -11/Scrapyard | Discovered new exit (range 3) 22 | -11/Scrapyard | Entered Materials 69 | -10/Materials | Discovered new exit (range 15) 304 | -10/Materials | Build established: Mutant 337 | -10/Materials | Discovered new exit (range 14) 493 | -10/Materials | Discovered new exit (range 12) 622 | -10/Materials | Derelicts attacked the area 659 | -10/Materials | Discovered new exit (range 11) 684 | -10/Materials | Discovered new exit (range 15) 1434 | -10/Materials | Entered Mines 1434 | -10/Mines | Accompanied by 1 ally 1435 | -10/Mines | Assembled infested the area 1437 | -10/Mines | Received a Mining Laser from a helpful Derelict 1441 | -10/Mines | Assisted by a Guerilla fighting off Assembled 1565 | -10/Mines | Destroyed 13 combat bots 1627 | -10/Mines | A weapon hastily lodged in a ceiling crevice suddenly fell to the ground 1816 | -10/Mines | Core integrity fell below 50% 1820 | -10/Mines | Core integrity fell below 20% 1821 | -10/Mines | Destroyed by D-53 Grenadier with Mini Grenade Launcher Last Messages --------------- 01630_ Acquired Mak. Sword. 01632_ T-07 Excavator is excavating. 01635_ K-01 Serf collects debris. 01677_ T-07 Excavator is excavating. 01714_ K-01 Serf collects debris. 01755_ G-47 Trooper destroyed. 01761_ G-34 Mercenary destroyed. 01764_ Acquired 39 matter. 01765_ Acquired 50 matter. 01802_ T-07 Excavator destroyed. 01806_ K-01 Serf collects debris. 01815_ K-01 Serf destroyed. 01815_ K-01 Serf collects debris. 01817_ Lgt. Treads destroyed. 01817_ Grenade Launcher destroyed. 01817_ K-01 Serf destroyed. 01818_ The unstable cave ceiling collapses. 01820_ Dropped Assault Rifle. 01821_ Dropped Sml. Storage Unit. 01821_ Assault Rifle destroyed. Map ----- +----------------------------------------------------+ | | | | | ?????????????????????????????????????????? | | ????????????????????????????########?????? | | ?????##????###???####??????? #?????? | | ????## #### #### ######## #?????? | | ????# ## [ ## """#?????? | | ????# ! ! ## """#?????? | | ?????# ! * ##### """#?????? | | ?????## ! #???#### #?????? | | ??????## ## #??????#########?????? | | ???????#???### ##????????????????????? | | ?????????????### ##????????????#####????? | | ???????????????# #???????????## ?????? | | ???????????????# #??????????? ??????? | | ???????????????# #??????????? #??????? | | ???????????????# #????#####?? #??????? | | ??????#?####???# #???## ##?# #??????? | | ??????# # ##### #???# ### #??????? | | ??????# ## #???# #??????? | | ??????# ### ###??# #???????? | | ??????# # # ##?# #????????? | | ??????###### = ### ########?? | | ???????????# o ## #?? | | ???????????# #######=#?? | | ???????????# @ d #####?????#[#?? | | ???????????## ! d #?????????#|#?? | | ????????????# # #?????????# #?? | | ????????????## #????????#!#?? | | ?????????????## ^ #???????# #?? | | ?????????????? #????#### ### | | ????????????? ^ # #????# | | ?????????????# ## # # #????# | | ?????????????# ?## ^ # #????# ###### | | ?????????????# ??## ## # #????# ?????? | | ?????????????# ???#### ?^ #????#??????# | | ?????????????# ??????########??????????## | | ?????????????# ???????????????????????### | | ?????????????# ??????????????????????#### | | ?????????????# ?????????????????????#### | | ????????????????????????????????????### | | ????????????????????????????????????## | | ????????????????????????????????????## | | ????????????????????????????????????## | | ?????????????????????????????????????## | | ??????????????????????????????????????### | | ????????????????????????????????????????## | | ?????????????????????????????????????????# | | ?????????????????????????????????????##### | | ?????????????????????????????????????##### | +----------------------------------------------------+ Best States ------------- Heat Dissipation 25 Energy Generation 10 Energy Capacity 250 Matter Stores 300 Matter Capacity 300 Sight Range 16 Terrain Scan Density 10 Evasion (%) 40 Recoil Reduction 2 Item Schematics ----------------- Flight Unit | -10/Materials | Hacked Robot Schematics ------------------ None Fabricated ------------ Nothing Repaired ---------- Nothing Studied --------- None Alien Tech Used ----------------- None Achievements -------------- None Challenges ------------ None Game ------ Seed AngularGrenadeClaw Manual? 0 Play Time 00:14:47 Cumulative 70.3 hours Start 2026.03.28 @ 20:20:18 End 2026.03.28 @ 20:34:59 Sessions 1 Manual Loads 0 Difficulty Rogue Special Mode None Game No. 67 Rogue 67 Adventurer 0 Explorer 0 Win Type - Total 2 Types 1/0/1/0/0/0/0/0/0/0 Lore% 50 Gallery% 39 Achievement% 37 Wizard Run 0 Options --------- Layout 2 ASCII 0 Keyboard 1 Movement Arrows Keybinds 0 Fullscreen 2 Font 24/Terminus Map View 50x44 Zoom Use 0% Tactical HUD 1 Map Filters NONE Filters NONE Steam 1 RUN: ef900f50-e1c3-498c-a9c1-93481231f783